Cogmind - Beta 10.2 @@@ ROGUE MODE // 2020.11.02 @ 20:08:39 // Halloween2020/ForbiddenLore Player: Ty Piggbottom Result: Self-destructed Performance ------------- Evolutions (1) 500 Regions Visited (2) 400 Robots Destroyed (35) 175 Value Destroyed (581) 581 Prototype IDs (3) 60 Alien Tech Used (0) 0 Bonus (0) 0 TOTAL SCORE: 1716 Bonus ------- None Cogmind --------- Core Integrity 337/400 Matter 300/300 Energy 100/100 System Corruption 0% Temperature Cool (0) Movement Core (50) Location -9/Materials Parts ------- > --- POWER (1) -------- (None) > --- PROPULSION (2) --- (None) > --- UTILITY (4) ------ Sensor Array Signal Interpreter Salvage Targeting Computer Hacking Suite > --- WEAPON (2) ------- (None) > --- INVENTORY (4) ---- Small Storage Unit Mining Laser Peak State ------------ > --- POWER ------------ Light Ion Engine > --- PROPULSION ------- Hover Unit Hover Unit > --- UTILITY ---------- Sensor Array Signal Interpreter Salvage Targeting Computer Hacking Suite > --- WEAPON ----------- EM Shotgun EM Shotgun > --- INVENTORY -------- Small Storage Unit Assault Rifle Assault Rifle Mining Laser [Rating: 14] Favorites ----------- Power Light Ion Engine Engine Light Ion Engine Propulsion Hover Unit Leg Aluminum Leg Wheel Wheel Hover Unit Hover Unit Utility Sensor Array Device Sensor Array Storage Small Storage Unit Processor Signal Interpreter Hackware Hacking Suite Weapon Assault Rifle Energy Gun EM Shotgun Ballistic Gun Assault Rifle Launcher Grenade Launcher Build | -11 -10 -9 ------- Run | Scr Mat Mat Slots Evolved 2 | . . 2 Power . | . . . Propulsion . | . . . Utility 2 | . . 2 Weapon . | . . . Parts Attached 54 | 9 38 7 Power 6 | 2 4 . Engine 6 | 2 4 . Core . | . . . Reactor . | . . . Propulsion 13 | 2 11 . Treads . | . . . Leg 2 | 2 . . Wheel 2 | . 2 . Hover 9 | . 9 . Flight . | . . . Utility 10 | 2 5 3 Device 3 | . 2 1 Storage 3 | 2 1 . Processor 3 | . 2 1 Hackware 1 | . . 1 Protection . | . . . Artifact . | . . . Weapon 25 | 3 18 4 Energy Gun 5 | . 3 2 Energy Cannon . | . . . Ballistic Gun 14 | 3 9 2 Ballistic Cannon . | . . . Launcher 6 | . 6 . Special Weapon . | . . . Impact Weapon . | . . . Slashing Weapon . | . . . Piercing Weapon . | . . . Special Melee Weapon . | . . . Unidentified Prototypes . | . . . Parts Lost 6 | . 1 5 Power 1 | . . 1 Propulsion 3 | . 1 2 Utility . | . . . Weapon 2 | . . 2 Highest Loss Streak 5 | . 1 5 Average Slot Usage (%) 96 | . 97 92 Engine 13 | . 14 10 Wheel 1 | . 1 . Hover 24 | . 25 19 Device 10 | . 10 10 Storage 4 | . 5 . Processor 12 | . 9 21 Hackware 1 | . . 10 Energy Gun 2 | . 1 7 Ballistic Gun 22 | . 25 12 Launcher 1 | . 1 . Naked Turns . | . . . Heaviest Build 17 | 17 17 10 Greatest Support 26 | 20 26 12 Greatest Overweight (x) 2 | 1 2 1 Average Overweight (x) . | . . . Largest Inventory Capacity 8 | 8 8 6 Average Capacity 4 | 6 4 4 Most Carried 8 | 4 8 5 Average Carried 3 | 1 3 3 Final Capacity 8 | 8 6 4 Final Carried 6 | 4 6 2 Class Distribution -------------------- 100% | Mutant Dominant Class ---------------- Mutant | -10/Materials Mutant | -9/Materials Resources | -11 -10 -9 ----------- Run | Scr Mat Mat Matter Collected 1223 | 302 745 176 Remotely . | . . . Salvage Created 1209 | 72 864 273 Parts 59 | 2 50 7 Haulers Intercepted 2 | . 2 . Recyclers Shooed 3 | . 3 . Parts Field Recycled . | . . . Retrieved Matter . | . . . Parts Self-Destructed . | . . . Prevented . | . . . Kills | -11 -10 -9 ------- Run | Scr Mat Mat Combat Hostiles Destroyed 17 | . 15 2 Guns 13 | . 11 2 AOE 4 | . 4 . Classes Destroyed 7 | 1 6 . Worker 2 | . 2 . Hauler 2 | . 2 . Recycler 6 | 1 3 2 Operator 5 | . 4 1 Watcher 3 | . 3 . Swarmer 10 | . 9 1 Grunt 7 | . 6 1 Best Kill Streak 5 | 1 5 2 Combat Bots Only 4 | . 4 1 Max Kills in Single Turn 2 | 1 2 1 Gunslinging 1 | . 1 . Exploded 2 | . 2 . Melee . | . . . Uniques/NPCs Destroyed . | . . . Combat | -11 -10 -9 -------- Run | Scr Mat Mat Damage Taken 836 | . 533 303 Core 201 | . 138 63 Absorbed by Shields . | . . . Core Remaining (%) 72 | 100 44 . Volleys Fired 117 | 2 88 27 Largest 2 | 2 2 2 Hottest 90 | 40 90 90 Shots Fired 219 | 4 166 49 Gun 215 | 4 162 49 Cannon . | . . . Launcher 4 | . 4 . Special . | . . . Kinetic 190 | 4 149 37 Thermal . | . . . Explosive 4 | . 4 . Electromagnetic 25 | . 13 12 Robot Hit Streak 6 | 2 6 6 Robot Miss Streak 5 | 1 5 4 Penetration Max . | . . . Secondary Targets 2 | . 2 . Max Gunslinging Chain 1 | . 1 . Shots Hit Robots 108 | 2 80 26 Core Hits 56 | 2 42 12 Critical Hits . | . . . Critical Kills . | . . . Critical Parts Destroyed . | . . . Melee Attacks . | . . . Impact . | . . . Slashing . | . . . Piercing . | . . . Sneak Attacks . | . . . Combat Hostiles . | . . . Follow-up Attacks . | . . . Damage Inflicted 1875 | 23 1457 395 Guns 1491 | 23 1073 395 Cannons . | . . . Explosions 384 | . 384 . Melee . | . . . Ramming . | . . . Kinetic 1224 | 23 1004 197 Thermal 158 | . 158 . Explosive 226 | . 226 . Electromagnetic 267 | . 69 198 Impact . | . . . Slashing . | . . . Piercing . | . . . Highest Corruption . | . . . Average Corruption . | . . . Corruption Purged . | . . . Overload Shots . | . . . Overflow Damage 41 | . 41 . Projectiles . | . . . Explosions 41 | . 41 . Melee . | . . . Knockbacks . | . . . Impact . | . . . Kinetic . | . . . Secondary . | . . . Self-Inflicted Damage 122 | . 122 . Shots 2 | . 2 . Rammed . | . . . Targets Rammed . | . . . Kicked . | . . . Crushed . | . . . Highest Temperature 111 | . 111 74 Average Temperature 40 | . 47 27 Received Heat Transfer 126 | . 102 24 Siege Activations . | . . . Robots Corrupted . | . . . Combat Hostiles . | . . . Parts Fried 2 | . . 2 Impact Corruptions . | . . . Robots Melted . | . . . Combat Hostiles . | . . . Parts Melted . | . . . Heat Transferred 100 | . 100 . Parts Sabotaged . | . . . Parts Stolen . | . . . Parts Stripped . | . . . Power Chain Reactions . | . . . Missiles Intercepted . | . . . Alert | -11 -10 -9 ------- Run | Scr Mat Mat Peak Influence 376 | 5 376 227 Initial 97 | . 3 97 Average 219 | 2 246 153 Maximum Alert Level 1 | . 1 1 Low Security (%) 35 | 100 25 64 Level 1 64 | . 74 35 Level 2 . | . . . Level 3 . | . . . Level 4 . | . . . Level 5 . | . . . High Security . | . . . Max Security . | . . . Squads Dispatched 4 | . 4 . Investigation 1 | . 1 . Extermination . | . . . Reinforcement 3 | . 3 . Assault . | . . . Garrison . | . . . Intercept . | . . . Construction Impeded . | . . . Haulers Reinforced . | . . . Stealth | -11 -10 -9 --------- Run | Scr Mat Mat Distress Signals 1 | . . 1 Communications Jammed . | . . . Distress Signals . | . . . Times Spotted 43 | . 30 13 Peak Tracking Total 6 | . 3 6 Tactical Retreats 4 | . 1 3 Traps | -11 -10 -9 ------- Run | Scr Mat Mat Traps Triggered 2 | . 2 . Indirectly . | . . . Trap Hack Attempts . | . . . Triggered . | . . . Disarmed . | . . . Reprogrammed . | . . . Reused . | . . . Traps Extracted . | . . . Installed . | . . . Triggered . | . . . Machines | -11 -10 -9 ---------- Run | Scr Mat Mat Machines Disabled 6 | . 6 . Max in Single Turn 3 | . 3 . Machines Sabotaged . | . . . Garrisons Compromised . | . . . Overloaded Fab Kills . | . . . Fab Network Shutdowns . | . . . Hacking | -11 -10 -9 --------- Run | Scr Mat Mat Machines Accessed 8 | . 8 . Terminals 5 | . 5 . Fabricators . | . . . Repair Stations 1 | . 1 . Recycling Units 2 | . 2 . Scanalyzers . | . . . Garrison Access . | . . . Total Hacks 20 | . 20 . Successful 13 | . 13 . Failed 7 | . 7 . Catastrophic . | . . . Database Lockouts . | . . . Manual . | . . . Terminals 14 | . 14 . Fabricators . | . . . Repair Stations 2 | . 2 . Recycling Units 4 | . 4 . Scanalyzers . | . . . Garrison Access . | . . . Terminal Hacks 8 | . 8 . Record 1 | . 1 . Prototype ID Bank 2 | . 2 . Branch Access Points 1 | . 1 . Scanalyzer Index 1 | . 1 . Locate Traps 1 | . 1 . Transport Status 1 | . 1 . Zone Layout 1 | . 1 . Fabricator Hacks . | . . . Repair Station Hacks 1 | . 1 . Scan Component 1 | . 1 . Recycling Unit Hacks 4 | . 4 . Process 1 | . 1 . Report Inventory 2 | . 2 . Retrieve Matter 1 | . 1 . Scanalyzer . | . . . Garrison Access Hacks . | . . . Unauthorized Hacks . | . . . Terminals . | . . . Fabricators . | . . . Repair Stations . | . . . Recycling Units . | . . . Scanalyzers . | . . . Garrison Access . | . . . Data Cores Recovered 2 | . 1 1 Used . | . . . Hacking Detections 7 | . 7 . Full Trace Events . | . . . Feedback Events . | . . . Feedback Blocked . | . . . Robot Schematics Acquired . | . . . Robots Built . | . . . Matter . | . . . Time . | . . . Total Robot Build Rating . | . . . Part Schematics Acquired . | . . . Parts Built . | . . . Matter . | . . . Time . | . . . Total Part Build Rating . | . . . Parts Repaired . | . . . Time . | . . . Parts Recycled . | . . . Recycled Matter 111 | . 111 . Retrieved Matter 149 | . 149 . Retrieved Components . | . . . Parts Scanalyzed . | . . . Part Schematics Acquired . | . . . Parts Damaged . | . . . Bothacking | -11 -10 -9 ------------ Run | Scr Mat Mat Used RIF Installer . | . . . Robots Hacked . | . . . Non-combat . | . . . Combat . | . . . Robot Hacks Applied . | . . . Relay Couplers Released . | . . . Robots Rewired . | . . . Allies Hacked . | . . . Hacks Repelled . | . . . Allies | -11 -10 -9 -------- Run | Scr Mat Mat Total Allies . | . . . Largest Group . | . . . Highest-Rated Group . | . . . Highest-Rated Ally . | . . . Total Orders . | . . . Ally Attacks . | . . . Total Damage . | . . . Kills . | . . . Allies Corrupted . | . . . Allies Melted . | . . . Intel | -11 -10 -9 ------- Run | Scr Mat Mat Robot Analysis Total . | . . . Derelict Logs Recovered . | . . . Drone Launches . | . . . Drone Recoveries . | . . . Exploration | -11 -10 -9 ------------- Run | Scr Mat Mat Turns Passed 1591 | 77 1250 264 Spaces Moved 1588 | 49 1346 193 Core 12 | 11 . 1 Treads . | . . . Legs 61 | 38 23 . Wheels 23 | . 23 . Hover 1492 | . 1300 192 Flight . | . . . Fastest Speed 50 | 50 56 50 Average Speed 59 | 109 58 58 Slowest Speed 180 | 150 180 120 Overloaded Moves . | . . . Propulsion Burnouts . | . . . Robots Hopped . | . . . Cave-ins Triggered . | . . . Exploration Rate (%) 40 | 5 99 17 Regions Visited 2 Branch Regions . Pre-discovered Areas . | . . . Known Exits Taken 1 | . 1 . Unknown Exits Taken 1 | 1 . . Scrap Searched . | . . . Spaces Dug . | . . . Terrain Destroyed 91 | . 91 . Melee . | . . . Projectile . | . . . AOE 91 | . 91 . Terrain Rammed . | . . . Walls Destroyed . | . . . Machines Disabled . | . . . Actions | -11 -10 -9 --------- Run | Scr Mat Mat Total 2008 | 65 1646 297 Wait 181 | . 123 58 Move 1586 | 48 1345 193 Hop . | . . . Pick Up 30 | 4 21 5 Fast Attach 13 | 7 6 . Attach 10 | 1 4 5 Detach 5 | 1 4 . Swap 31 | 1 28 2 Drop 35 | 1 27 7 Fire 117 | 2 88 27 Melee . | . . . Ram . | . . . Kick . | . . . Crush . | . . . Escape Stasis . | . . . Rewire . | . . . Trap . | . . . Miscellaneous . | . . . Route ------- -11/Scrapyard -10/Materials (discovered 4 exits: *Mat x3 / *Min) -9/Materials (discovered 1 exit: *Min) History --------- Turn | Location | Event 23 | -11/Scrapyard | Discovered new exit (range 16) 78 | -11/Scrapyard | Entered Materials 213 | -10/Materials | Identified exit to Mines 319 | -10/Materials | Build established: Mutant 458 | -10/Materials | Discovered new exit (range 3) 795 | -10/Materials | Discovered new exit (range 12) 823 | -10/Materials | Identified exit to Materials 1081 | -10/Materials | Core integrity fell below 50% 1179 | -10/Materials | Discovered exit to Materials (range 15) 1328 | -10/Materials | Entered another Materials area 1328 | -9/Materials | Evolved 2 slots: Utility x2 1399 | -9/Materials | Discovered new exit (range 16) 1433 | -9/Materials | Identified exit to Mines 1592 | -9/Materials | Self-destructed Last Messages --------------- 01537_ Hover Unit destroyed. 01539_ R-06 Scavenger collects EM Shotgun. 01543_ S-10 Pest destroyed. 01545_ K-01 Serf collects debris. 01546_ Acquired 6 matter. 01555_ Acquired 2 matter. 01557_ Assault Rifle destroyed. 01564_ K-01 Serf collects debris. 01564_ R-06 Scavenger collects Flight Unit. 01568_ K-01 Serf collects debris. 01568_ S-10 Pest destroyed. 01570_ Lgt. Ion Engine destroyed. 01571_ K-01 Serf collects debris. 01572_ Assault Rifle destroyed. 01576_ K-01 Serf collects debris. 01579_ Acquired 10 matter. 01581_ K-01 Serf collects debris. 01587_ T-07 Excavator is excavating. 01591_ Hover Unit destroyed. 01591_ T-07 Excavator is excavating. Map ----- +----------------------------------------------------+ | ?????????????????????????????????????????????????? | | ?????????????????????????? ??????????????????????? | | ????????????????????????" #?????????????????????? | | ????????????????????????" ?????????????????????? | | ???????????????????????? ?????????????????????? | | ???????????????????????? #????????????????????? | | ????????????????????????# #????????????#######?? | | ????????????????????????# #????????????# ??? | | ????????????????????????# #????????????# ??? | | ????????????????????????# #????????????# "" ???? | | ?????????????????###????# /????????????# "T ???? | | ?????????????????? ???# g#????????????? ""????? | | ???????????????????"" ?## ##???######### ????? | | ????????????????????" # ##### ##+###### | | ????????????????????? # | | ?????????????????????? + > | | ???????????????????????# % | | ???????????????????????# t#####" "##+###### | | ???????????????????????## ##???#" |" "# ## | | ????????????????????????# s #????#"""""""# ## | | ????????????????????????#ss #????######### """ ## | | ????????????????????????# #????????????# """ ## | | ????????????????????????# #????????????# """ ## | | ????????????????????????# #????????????# ## | | ????????????????????????# #????????????######### | | ????????????????????????#@ #????????????????????# | | ????????????????????????# #????????????????????# | | ????????????????????????# #????????????????????# | | ????????????????????????# #????????????????????? | | ???????????????????????? #????????????????????? | | ???????????????????????? t????????????????????? | | ??????????????????????x?u ##???????????????????? | | ????????????????????????/##+#????????????????????? | | ???????????????????????? ????????????????????????? | | ????????????????????????"????????????????????????? | | ???????????????????????""????????????????????????? | | ???????????????????????""????????????????????????? | | ?????????????????????????????????????????????????? | | ?????????????????????????????????????????????????? | | ?????????????????????????????????????????????????? | | ?????????????????????????????????????????????????? | | ?????????????????????????????????????????????????? | | ?????????????????????????????????????????????????? | | ?????????????????????????????????????????????????? | | ?????????????????????????????????????????????????? | | ?????????????????????????????????????????????????? | | ?????????????????????????????????????????????????? | | ?????????????????????????????????????????????????? | | ?????????????????????????????????????????????????? | | ?????????????????????????????????????????????????? | +----------------------------------------------------+ Best States ------------- Heat Dissipation 28 Energy Generation 10 Energy Capacity 250 Matter Stores 300 Matter Capacity 300 Sight Range 16 Robot Scan Range 10 Terrain Scan Density 10 Evasion (%) 53 Salvage Targeting 1 Offensive Hacking 10 Item Schematics ----------------- None Robot Schematics ------------------ None Fabricated ------------ Nothing Alien Tech Used ----------------- None Achievements -------------- None Challenges ------------ None Game ------ Seed ActuatorEnhancedBarrier Manual? 0 Play Time 00:49:57 Cumulative 95.5 hours Start 2020.11.02 @ 19:20:19 End 2020.11.02 @ 20:08:39 Sessions 1 Manual Loads 0 Difficulty Rogue Special Mode Halloween2020/ForbiddenLore Game No. 35 Rogue 35 Adventurer 0 Explorer 0 Win Type - Total 0 Types 0/0/0/0/0/0/0/0/0 Lore% 4 Gallery% 12 Achievement% 11 Wizard Run 0 Options --------- ASCII 0 Keyboard 1 Movement Vi Keybinds 0 Fullscreen 1 Font 12/Smallcaps Map View 83x54 Tactical HUD 1 Map Filters NONE Filters NONE Steam 1 RUN: 5475e3ab-f918-4d42-9d48-10a30776b4f7